bitfinex/quotes_ETHUSD_20240917
["timestamp","ask_amount","ask_price","bid_price","bid_amount"]
[1726606774836,7.69388,2350.3,2349.9,11.32912576]
[1726606777279,7.69388,2350.3,2349.9,4.07369576]
[1726606777535,8.57613025,2350.3,2349.9,4.07369576]
[1726606778056,4.46823621,2350.2,2349.9,4.07369576]
[1726606778261,4.25502,2350.2,2349.9,4.07369576]
[1726606778442,4.25502,2350.2,2349.8,4.25566]
[1726606778644,4.25502,2350.2,2349.8,6.16803858]
[1726606779153,4.25502,2350.2,2349.9,4.07369576]
[1726606780296,4.25502,2350.2,2349.8,6.16803858]
[1726606780499,4.25539,2350.0,2349.6,3.0]
[1726606780796,3.6926,2349.9,2349.5,8.32980576]
[1726606781148,7.9482,2349.9,2349.5,4.07369576]
[1726606781780,3.6926,2349.9,2349.5,8.32989576]
[1726606782094,3.6926,2349.9,2349.5,10.24559034]
[1726606783089,7.94811,2349.9,2349.5,10.24559034]
[1726606784574,7.94811,2349.9,2349.5,4.07369576]
[1726606784757,12.2037,2349.9,2349.5,4.07369576]
[1726606784971,8.83036025,2349.9,2349.5,4.07369576]
[1726606785784,7.94811,2349.9,2349.6,0.09292776]
[1726606785992,7.94811,2349.9,2349.6,1.97459412]
[1726606786191,8.83036025,2349.9,2349.6,1.97459412]
[1726606786486,4.2557,2349.8,2349.6,1.97459412]
[1726606786688,4.2557,2349.8,2349.6,1.88166636]
[1726606787091,4.2557,2349.8,2349.6,1.97459412]
[1726606787994,4.2557,2349.8,2349.6,1.88166636]
[1726606788987,4.2557,2349.8,2349.6,1.97459412]
[1726606789392,4.25586,2349.7,2349.6,0.09292776]
[1726606789556,12.18802,2349.7,2349.6,0.09292776]
[1726606789896,13.07027025,2349.7,2349.6,0.09292776]
[1726606790247,13.28353811,2349.7,2349.3,1.88166636]
[1726606790452,7.93216,2349.7,2349.6,0.09292776]
[1726606790690,8.14543315,2349.7,2349.3,1.88166636]
[1726606790900,7.93216,2349.7,2349.6,0.09292776]
[1726606791189,4.25605,2349.6,2349.4,0.09344441]
[1726606791498,4.25605,2349.6,2349.3,1.88166636]
[1726606791792,4.25605,2349.6,2349.5,0.09318607]
[1726606791998,4.25605,2349.6,2349.3,1.88166636]
[1726606792287,4.25605,2349.6,2349.5,0.09318607]
[1726606792496,4.25605,2349.6,2349.5,1.88166636]
[1726606792699,4.25605,2349.6,2349.5,1.97485243]
[1726606794448,9.81913402,2349.6,2349.5,0.09318607]
[1726606794697,14.25508427,2349.6,2349.5,0.09318607]
[1726606794857,4.25658,2349.3,2349.2,0.0391596]
[1726606795052,4.25658,2349.3,2349.2,0.11969772]
[1726606795495,4.25649,2349.4,2349.2,0.11969772]
[1726606796071,9.11691402,2349.6,2349.3,1.88166636]
[1726606796072,3.5537,2349.6,2349.3,1.88166636]
[1726606796264,4.25594,2349.7,2349.5,1.88166636]
[1726606796470,4.25604,2349.6,2349.4,0.09376877]
[1726606796654,7.97094,2349.6,2349.3,1.88166636]
[1726606797608,8.51193,2349.7,2349.5,1.88166636]
[1726606798100,4.25604,2349.6,2349.5,1.88166636]
[1726606798458,4.25628,2349.5,2349.3,1.88166636]
[1726606798658,7.76538,2349.5,2349.3,1.88166636]
[1726606799395,4.2564,2349.4,2349.3,1.88166636]
[1726606799598,7.76538,2349.5,2349.3,1.88166636]
[1726606800165,7.88155,2349.7,2349.3,1.88166636]
[1726606800360,4.25609,2349.6,2349.4,1.88166636]
[1726606802663,4.25605,2349.6,2349.4,5.35126636]
[1726606803309,4.25622,2349.5,2349.4,1.88166636]
[1726606803605,7.73032,2349.5,2349.2,1.92082596]
[1726606803752,7.73032,2349.5,2349.2,3.20643456]
[1726606803972,4.25605,2349.6,2349.4,1.88166636]
[1726606804421,8.51222,2349.6,2349.4,1.88166636]
[1726606804709,3.4741,2349.7,2349.4,1.88166636]
[1726606804710,7.72997,2349.7,2349.4,1.88166636]
[1726606804914,4.25606,2349.6,2349.4,1.88166636]
[1726606809109,4.25584,2349.8,2349.4,1.88166636]
[1726606809424,4.25612,2349.6,2349.4,1.88166636]
[1726606810425,3.5938,2349.9,2349.5,4.25614]
[1726606810583,4.25543,2350.0,2349.7,1.88166636]
[1726606810785,4.25562,2349.9,2349.7,1.88166636]
[1726606811103,4.25568,2349.8,2349.4,4.25638]
[1726606811302,4.25568,2349.8,2349.5,1.88166636]
[1726606811524,3.5454,2349.7,2349.5,1.88166636]
[1726606811827,4.25568,2349.8,2349.5,1.88166636]
[1726606813180,7.80091,2349.9,2349.5,1.88166636]
[1726606813523,4.25547,2350.0,2349.8,3.4884]
[1726606813732,5.58277302,2350.3,2349.9,1.88166636]
[1726606813893,9.04471537,2350.4,2350.2,1.88166636]
[1726606813894,8.60359025,2350.4,2350.2,1.88166636]
[1726606814237,4.25445,2350.5,2350.2,5.35456636]
[1726606814383,4.25445,2350.5,2350.4,1.88166636]
[1726606815291,4.25445,2350.5,2350.0,4.25517]
[1726606815292,4.25445,2350.5,2350.2,1.88166636]
[1726606815685,4.25459,2350.4,2349.9,0.55]
[1726606815885,4.25496,2350.2,2350.0,1.88166636]
[1726606817235,4.25513,2350.1,2349.8,1.88166636]
[1726606817838,8.51006,2350.2,2349.8,1.88166636]
[1726606818133,8.51006,2350.2,2349.8,4.0758431]
[1726606818706,4.25514,2350.1,2349.8,4.0758431]
[1726606820205,4.25514,2350.1,2349.6,7.75834]
[1726606820206,7.87509,2349.9,2349.6,4.0758431]
[1726606821218,11.96808,2350.2,2349.8,4.0758431]
[1726606821527,0.44559964,2350.4,2350.1,8.3309731]
[1726606821706,3.4579,2350.5,2350.2,1.25861531]
[1726606821916,3.4579,2350.5,2350.1,8.3309731]
[1726606822236,3.4579,2350.5,2350.0,4.25518]
[1726606822237,3.4579,2350.5,2350.3,4.0758431]
[1726606822399,0.88225025,2350.6,2350.3,7.6058431]
[1726606822744,3.6841,2350.7,2350.5,4.0758431]
[1726606822947,7.93816,2350.7,2350.5,4.0758431]
[1726606823437,4.25423,2350.6,2350.3,4.0758431]
[1726606824242,3.6841,2350.7,2350.3,4.0758431]
[1726606824546,7.93826,2350.7,2350.3,4.0758431]
[1726606826536,4.25423,2350.6,2350.3,4.0758431]
[1726606828629,0.88225025,2350.8,2350.4,7.72244]
[1726606828831,0.88225025,2350.9,2350.7,4.0758431]
[1726606829031,4.25379,2350.9,2350.7,4.0758431]
[1726606830802,7.69853,2351.0,2350.7,4.0758431]
[1726606831215,5.13559025,2351.1,2350.7,4.0758431]
[1726606831424,4.25334,2351.1,2350.9,4.0758431]
[1726606831962,4.2535,2351.0,2350.9,4.0758431]
[1726606832177,4.2535,2351.0,2350.7,7.5437431]
[1726606832445,4.2537,2350.9,2350.7,4.0758431]
[1726606835177,4.2537,2350.9,2350.3,1.19126131]
[1726606835178,4.25419,2350.7,2350.3,11.9933831]
[1726606836535,4.25435,2350.6,2350.1,14.9936331]
[1726606836740,4.25435,2350.6,2350.0,4.2552]
[1726606836741,4.2546,2350.4,2350.0,4.2552]
[1726606836955,4.25477,2350.3,2349.9,7.7386431]
[1726606837152,4.25477,2350.3,2349.7,4.25581]
[1726606837153,7.97555,2350.1,2349.7,3.6628]
[1726606837435,7.9639,2350.3,2349.9,4.0758431]
[1726606837670,19.63803,2350.5,2350.1,4.0758431]
[1726606837870,15.38351,2350.5,2350.1,7.7587431]
[1726606838454,4.25516,2350.1,2349.7,10.7587431]
[1726606838679,7.96416,2350.1,2349.7,7.7587431]
[1726606838865,4.25559,2349.9,2349.5,4.0758431]
[1726606839266,4.25569,2349.8,2349.5,4.0758431]
[1726606839778,4.25559,2349.9,2349.5,4.0758431]
[1726606841038,8.51118,2349.9,2349.5,4.0758431]
[1726606841754,4.25559,2349.9,2349.5,4.0758431]
[1726606841954,4.25559,2349.9,2349.5,5.27734841]
[1726606842188,4.25543,2350.0,2349.7,7.7587431]
[1726606843167,4.25526,2350.1,2349.7,7.7587431]
[1726606843552,4.25541,2350.0,2349.7,7.7587431]
[1726606845776,4.25552,2349.9,2349.7,7.7587431]
[1726606845994,4.25532,2350.0,2349.7,7.7587431]
[1726606854743,4.25481,2350.3,2349.9,4.0758431]
[1726606855040,4.25481,2350.3,2350.1,4.0758431]
[1726606856037,4.25495,2350.2,2350.1,4.0758431]
[1726606856320,8.5097,2350.3,2350.1,4.0758431]
[1726606856732,4.25522,2350.1,2349.9,4.0758431]
[1726606860026,4.25498,2350.2,2349.9,4.0758431]
[1726606860646,4.2549,2350.3,2350.1,4.0758431]
[1726606860955,8.5098,2350.3,2350.1,7.5451431]
[1726606861134,4.2549,2350.3,2350.1,7.5451431]
[1726606861658,8.50977,2350.3,2350.1,7.5451431]
[1726606862346,4.25487,2350.3,2350.1,7.5451431]
[1726606862848,4.25453,2350.5,2350.1,8.72520641]
[1726606863045,8.50904,2350.5,2350.3,4.0758431]
[1726606863247,4.25459,2350.4,2350.3,4.0758431]
[1726606863967,4.2545,2350.5,2350.3,4.0758431]
[1726606864263,4.25459,2350.4,2350.3,4.0758431]
[1726606864633,4.2545,2350.5,2350.3,4.94836374]
[1726606865762,7.8155,2350.7,2350.3,4.94836374]
[1726606865917,1.32751644,2350.8,2350.6,4.0758431]
[1726606865918,0.44526619,2350.8,2350.6,4.0758431]
[1726606866126,4.25399,2350.8,2350.6,4.0758431]
[1726606866635,4.33895025,2351.0,2350.6,4.0758431]
[1726606866636,0.88225025,2351.0,2350.6,9.10624741]
[1726606866844,4.32496796,2351.2,2350.8,4.0758431]
[1726606866845,1.32751385,2351.2,2350.8,4.0758431]
[1726606867049,0.4452636,2351.2,2351.0,4.0758431]
[1726606867253,0.4452636,2351.2,2351.1,3.87998431]
[1726606867435,8.50547,2351.5,2351.1,3.87998431]
[1726606867768,4.25296,2351.3,2351.1,3.4724]
[1726606868001,4.25273,2351.5,2351.0,4.0758431]
[1726606868002,4.25288,2351.4,2351.0,4.0758431]
[1726606868148,4.25305,2351.3,2351.0,4.0758431]
[1726606869291,4.25288,2351.4,2351.0,4.0758431]
[1726606869468,4.25288,2351.4,2351.0,5.68141341]
[1726606870085,4.25299,2351.3,2351.0,5.68141341]
[1726606871101,4.25299,2351.3,2350.9,7.5482431]
[1726606871390,4.25281,2351.4,2351.1,4.0758431]
[1726606871620,4.25273,2351.5,2351.3,4.0758431]
[1726606872001,4.25273,2351.5,2351.3,7.7617431]
[1726606872549,4.69757812,2351.7,2351.3,7.7617431]
[1726606872751,4.69757812,2351.7,2351.5,4.0758431]
[1726606872963,4.69757812,2351.7,2351.3,8.53791741]
[1726606873191,4.25242,2351.6,2351.3,8.53791741]
[1726606874565,4.25242,2351.6,2351.3,8.53791741]
[1726606875787,8.94993812,2351.7,2351.3,8.53791741]
[1726606876377,4.2525,2351.6,2351.3,8.53791741]
[1726606877413,4.2525,2351.6,2351.4,0.85379174]
[1726606877584,4.69757812,2351.7,2351.4,0.85379174]
[1726606877784,4.69757812,2351.7,2351.5,4.0758431]
[1726606878113,8.94997812,2351.7,2351.5,4.0758431]
[1726606878424,4.69757812,2351.7,2351.5,4.0758431]
[1726606878581,4.69756812,2351.7,2351.5,4.0758431]
[1726606879583,4.69756812,2351.7,2351.4,0.85379174]
[1726606879584,4.69756812,2351.7,2351.3,8.53791741]
[1726606880273,0.44522812,2351.7,2351.5,4.0758431]
[1726606880782,0.44522812,2351.7,2351.6,8.48472]
[1726606881005,0.44522812,2351.7,2351.6,8.56975857]
[1726606881218,0.0391596,2352.0,2351.6,11.56975857]
[1726606881435,0.0391596,2352.0,2351.9,4.0758431]
[1726606882524,0.0391596,2352.0,2351.9,7.7501431]
[1726606884007,0.0391596,2352.0,2351.9,4.0758431]
[1726606887675,0.0391596,2352.0,2351.4,4.95339574]
[1726606887676,3.4011,2351.9,2351.4,4.95339574]
[1726606887963,7.6531,2351.9,2351.4,7.7501431]
[1726606888125,4.25206,2351.8,2351.4,7.7501431]
[1726606888326,4.25206,2351.8,2351.4,9.67575541]
[1726606888726,0.0391596,2352.0,2351.6,4.0758431]
[1726606888979,0.0391596,2352.0,2351.8,7.7326431]
[1726606893228,0.0391596,2352.0,2351.9,0.08503179]
[1726606893430,0.0391596,2352.0,2351.9,7.80188]
[1726606893654,0.0391596,2352.0,2351.9,11.39128]
[1726606894773,0.0391596,2352.0,2351.9,13.36319631]
[1726606896475,0.0391596,2352.0,2351.9,17.61507631]
[1726606896661,0.0391596,2352.7,2352.6,3.637]
[1726606896838,0.0391596,2352.7,2352.6,7.7128431]
[1726606897038,0.0391596,2352.7,2352.6,14.22838975]
[1726606897338,0.0391596,2352.7,2352.6,14.14338588]
[1726606898773,0.0391596,2352.7,2352.6,9.89277588]
[1726606899386,0.0391596,2352.7,2352.6,1.62993278]
[1726606899593,0.0391596,2352.7,2352.5,3.0]
[1726606901588,4.2896196,2352.7,2352.5,3.0]
[1726606901773,4.25094,2352.5,2352.1,3.0]
[1726606901971,4.25106,2352.4,2352.1,3.0]
[1726606902172,4.25094,2352.5,2352.2,1.05817431]
[1726606902552,8.50185,2352.5,2352.2,1.05817431]
[1726606903084,4.25115,2352.3,2352.1,3.0]
[1726606903249,4.25115,2352.3,2352.0,4.0758431]
[1726606903779,4.25098,2352.4,2352.0,4.0758431]
[1726606903982,8.50205,2352.4,2352.0,4.0758431]
[1726606904142,4.25098,2352.4,2352.0,4.0758431]
[1726606904342,4.25098,2352.4,2352.0,5.69921641]
[1726606904971,4.2508,2352.5,2352.2,4.0758431]
[1726606905981,4.25084,2352.5,2352.2,4.0758431]
[1726606907085,0.0391596,2352.7,2352.4,4.0758431]
[1726606907290,0.0391596,2352.7,2352.6,4.0758431]
[1726606910180,0.0391596,2352.7,2352.4,8.3267031]
[1726606911101,0.0391596,2352.7,2352.4,4.0758431]
[1726606911300,4.2896096,2352.7,2352.4,3.0]
[1726606911596,3.5348,2352.6,2352.3,3.0]
[1726606911802,3.5348,2352.6,2352.3,4.90331831]
[1726606912399,0.0391596,2352.7,2352.4,4.0758431]
[1726606912811,4.2895996,2352.7,2352.4,4.0758431]
[1726606916084,8.5401196,2352.7,2352.4,4.0758431]
[1726606916486,0.0391596,2352.7,2352.4,8.3267431]
[1726606916662,0.0391596,2352.7,2352.5,1.32300614]
[1726606916866,8.5402096,2352.7,2352.3,3.0]
[1726606917066,4.2896196,2352.7,2352.3,3.0]
[1726606917677,4.2896196,2352.7,2352.4,4.0758431]
[1726606920106,8.5402196,2352.7,2352.4,4.0758431]
[1726606920471,4.2896196,2352.7,2352.4,4.0758431]
[1726606920668,8.5401896,2352.7,2352.4,4.0758431]
[1726606920992,8.5401896,2352.7,2352.0,4.0758431]
[1726606920993,3.4906,2352.5,2352.0,4.0758431]
[1726606921198,4.25111,2352.4,2352.0,8.3274431]
[1726606922070,4.25114,2352.4,2351.9,3.5932]
[1726606922275,4.25143,2352.2,2351.8,4.0758431]
[1726606922475,4.2512,2352.3,2352.0,4.0758431]
[1726606922713,4.25142,2352.2,2352.0,4.0758431]
[1726606922873,3.4906,2352.1,2351.8,5.57074741]
[1726606923216,7.7418,2352.3,2352.0,4.0758431]
[1726606927374,11.99308,2352.3,2352.0,4.0758431]
[1726606927624,4.25145,2352.2,2352.0,4.0758431]
[1726606927827,4.25145,2352.2,2351.8,8.57074741]
[1726606928065,4.25153,2352.1,2351.8,8.57074741]
[1726606928217,4.25153,2352.1,2351.6,8.3282231]
[1726606928218,4.2517,2352.0,2351.6,8.3282231]
[1726606928419,7.7268,2352.0,2351.7,3.0]
[1726606928654,4.25193,2351.9,2351.7,3.0]
[1726606928955,7.7268,2352.0,2351.7,3.0]
[1726606929465,4.25192,2351.9,2351.4,11.9327131]
[1726606929614,4.25192,2351.9,2351.6,4.0758431]
[1726606930925,4.2521,2351.8,2351.6,4.0758431]
[1726606932115,4.25192,2351.9,2351.6,4.0758431]
[1726606932350,8.50389,2351.9,2351.6,4.0758431]
[1726606932867,4.25208,2351.8,2351.6,4.0758431]
[1726606933970,4.25082952,2351.8,2351.6,4.0758431]
[1726606934258,4.25224,2351.7,2351.4,4.0758431]
[1726606936968,3.41,2351.6,2351.4,4.0758431]
[1726606937319,3.41,2351.8,2351.4,5.99504541]
[1726606937661,4.25198,2351.9,2351.6,4.0758431]
[1726606938064,4.25198,2351.9,2351.6,7.5414431]
[1726606938358,4.25207,2351.8,2351.6,7.5414431]
[1726606940669,4.25198,2351.9,2351.6,7.5414431]
[1726606940969,8.50399,2351.9,2351.6,8.92129012]
[1726606941135,3.41,2352.0,2351.6,8.92129012]
[1726606941136,7.66173,2352.0,2351.6,8.92129012]
[1726606941520,4.25173,2352.0,2351.8,4.0758431]
[1726606942867,4.25173,2352.0,2351.6,8.92129012]
[1726606943420,4.25179,2352.0,2351.7,1.31738301]
[1726606944041,4.2519,2351.9,2351.7,1.31738301]
[1726606945636,4.25172,2352.0,2351.7,1.31738301]
[1726606945969,4.69643843,2352.3,2351.9,3.0]
[1726606946138,4.69643843,2352.3,2352.0,0.71608779]
[1726606946139,4.25134,2352.2,2352.0,0.71608779]
[1726606946342,4.25134,2352.2,2351.9,3.0]
[1726606948682,0.44513843,2352.3,2352.1,4.25151]
[1726606948830,0.44513843,2352.3,2352.2,4.0758431]
[1726606949032,0.44513843,2352.3,2352.2,8.56317841]
[1726606949293,0.0391596,2352.7,2352.6,10.79651]
[1726606949575,0.0391596,2352.7,2352.6,14.8723531]
[1726606949788,0.0391596,2352.7,2352.6,19.6729631]
[1726606951546,0.0391596,2353.4,2353.1,3.0]
[1726606951888,0.0391596,2353.4,2353.2,4.0758431]
[1726606953782,0.0391596,2353.4,2353.2,4.16082625]
[1726606954646,0.0391596,2353.4,2353.2,4.0758431]
[1726606955672,0.0391596,2353.4,2353.1,3.0]
[1726606955837,0.0391596,2353.4,2353.1,4.48045031]
[1726606956380,0.0391596,2353.4,2353.1,4.56543356]
[1726606956975,0.0391596,2353.4,2353.2,4.0758431]
[1726606957146,0.0391596,2353.4,2353.2,4.16082267]
[1726606957676,0.0391596,2353.4,2353.3,0.08497904]
[1726606957875,0.0391596,2353.4,2353.3,1.79900029]
[1726606958078,0.0391596,2353.4,2353.3,1.71402125]
[1726606958459,0.0391596,2353.4,2353.3,1.79899956]
[1726606958654,0.0391596,2353.4,2353.3,1.71402125]
[1726606960998,0.0391596,2353.4,2353.1,8.55629341]
[1726606961369,0.0391596,2353.4,2353.1,12.80598341]
[1726606961967,0.0391596,2353.4,2353.3,4.0758431]
[1726606962196,0.0391596,2353.4,2353.3,4.1608197]
[1726606963357,0.0391596,2353.4,2353.3,8.2605431]
[1726606963552,0.0391596,2353.4,2353.3,10.38456344]
[1726606963756,0.0391596,2353.4,2353.3,14.63391344]
[1726606971132,0.0391596,2353.4,2353.3,21.88326344]
[1726606971621,0.0391596,2353.4,2353.3,17.80742034]
[1726606980062,0.0391596,2353.4,2353.3,22.05677034]
[1726606981410,0.0391596,2354.1,2353.9,4.24824]
[1726606981687,0.0391596,2354.1,2354.0,4.5006671]
[1726606983687,3.6005,2354.0,2353.6,3.0]
[1726606983888,7.84886,2353.9,2353.5,3.0]
[1726606984240,3.6005,2353.9,2353.7,3.0]
[1726606985241,3.6005,2353.9,2353.6,4.0758431]
[1726606987644,7.84889,2353.9,2353.5,0.55]
[1726606988145,3.6005,2353.9,2353.5,4.79894]
[1726606988353,3.6005,2353.9,2353.6,3.0]
[1726606989887,3.6005,2353.9,2353.6,7.0758431]
[1726606991453,3.6005,2353.9,2353.6,11.3245931]
[1726606991657,3.6005,2353.9,2353.6,9.05196641]
[1726606993929,3.6005,2353.9,2353.6,3.0]
[1726606994222,3.6005,2353.9,2353.6,11.3245531]
[1726606994786,3.5453596,2354.1,2353.7,4.24862]
[1726606995001,0.0391596,2354.1,2354.0,8.3239231]
[1726607001632,0.0391596,2354.1,2353.8,3.6377]
[1726607001816,0.0391596,2354.1,2353.7,3.0]
[1726607001817,3.6945,2354.0,2353.7,3.0]
[1726607002740,3.6945,2354.0,2353.7,7.2486]
[1726607003828,3.6945,2354.0,2353.7,11.4972]
[1726607003990,3.6945,2354.0,2353.7,8.80590431]
[1726607005547,0.0391596,2354.1,2353.8,12.5725331]
[1726607005834,0.0391596,2354.1,2353.9,4.79822]
[1726607007115,0.0391596,2354.1,2353.8,4.24842]
[1726607007321,3.6945,2354.0,2353.7,7.24862]
[1726607007553,3.6945,2354.0,2353.7,3.0]
[1726607008725,7.94263,2354.0,2353.7,3.0]
[1726607008926,3.6945,2354.0,2353.7,3.0]
[1726607009898,7.94269,2354.0,2353.7,3.0]
[1726607010311,3.6945,2354.0,2353.7,3.0]
[1726607010542,7.94259,2354.0,2353.7,3.0]
[1726607011427,3.6945,2354.0,2353.8,4.0758431]
[1726607011838,3.6945,2354.0,2353.8,8.3242131]
[1726607012839,3.6945,2354.0,2353.8,4.0758431]
[1726607013536,3.6945,2354.0,2353.8,8.3242831]
[1726607014435,3.6945,2354.0,2353.8,4.0758431]
[1726607015200,3.6945,2354.0,2353.7,7.24859]
[1726607020035,3.6945,2354.0,2353.8,1.87478725]
[1726607020230,3.6945,2354.0,2353.8,6.12322725]
[1726607022303,3.6945,2354.0,2353.9,4.24826]
[1726607022546,0.0391596,2354.1,2354.0,4.24808]
[1726607022752,0.0391596,2354.1,2354.0,6.12286725]
[1726607022953,0.0391596,2354.1,2354.0,6.20781972]
[1726607023842,0.0391596,2354.1,2354.0,1.87478725]
[1726607024043,0.0391596,2354.1,2354.0,4.24808]
[1726607024252,0.0391596,2354.1,2353.9,4.06110482]
[1726607024399,3.6105,2354.0,2353.8,4.24836]
[1726607025245,3.6105,2354.0,2353.7,11.30957482]
[1726607025451,3.6105,2354.0,2353.8,4.24839]
[1726607025950,0.0391596,2354.1,2354.0,4.24808]
[1726607026809,0.0391596,2354.1,2353.9,8.30935482]
[1726607027648,0.0391596,2354.1,2354.0,4.24808]
[1726607031067,0.0391596,2354.1,2353.9,8.30935482]
[1726607031270,0.0391596,2354.1,2353.9,14.57383405]
[1726607032765,0.0391596,2354.1,2354.0,4.24808]
[1726607033731,0.0391596,2354.1,2353.9,10.32563405]
[1726607034046,3.6688,2354.0,2353.9,4.24823]
[1726607035134,3.6688,2354.0,2353.8,4.24843]
[1726607036949,7.91697,2354.0,2353.7,3.0]
[1726607037175,4.55105025,2354.0,2353.7,3.0]
[1726607037333,3.6688,2354.0,2353.8,8.30944482]
[1726607037538,3.6688,2354.0,2353.8,12.55781482]
[1726607037783,3.6688,2354.0,2353.8,8.30944482]
[1726607037944,3.6688,2354.0,2353.8,12.55779482]
[1726607038354,3.6688,2354.0,2353.8,8.30944482]
[1726607041990,3.6688,2354.0,2353.8,4.06110482]
[1726607042151,3.6688,2354.0,2353.7,7.24862]
[1726607042152,3.6688,2354.0,2353.7,3.0]
[1726607042361,8.79921025,2354.0,2353.7,3.0]
[1726607042543,3.5719,2353.9,2353.7,3.0]
[1726607043786,3.5719,2353.9,2353.7,7.24854]
[1726607044288,3.5719,2353.9,2353.7,3.0]
[1726607044717,3.5719,2353.9,2353.4,4.24904]
[1726607044718,4.24852,2353.8,2353.4,8.31014482]
[1726607045009,3.6395,2353.2,2353.0,4.24979]
[1726607046600,3.5399,2353.5,2353.1,4.24971]
[1726607046760,7.78892,2353.5,2353.2,4.06110482]
[1726607051271,4.2492,2353.4,2353.2,4.06110482]
[1726607051465,4.2492,2353.4,2353.0,7.06110482]
[1726607051691,3.6317,2353.3,2352.9,4.24997]
[1726607052720,3.6317,2353.3,2353.0,4.24988]
[1726607055274,3.7284,2353.5,2353.2,8.31062482]
[1726607055517,3.7284,2353.5,2353.2,4.06110482]
[1726607057179,3.7284,2353.5,2353.0,4.24975]
[1726607057419,3.7284,2353.5,2352.8,3.6355]
[1726607057420,3.6961,2353.3,2352.9,3.0]
[1726607057580,4.24936,2353.3,2352.9,3.0]
[1726607057776,3.6961,2353.3,2352.9,3.0]
[1726607058277,3.6961,2353.3,2352.9,7.25004]
[1726607058906,3.6961,2353.3,2353.0,4.06110482]
[1726607059106,3.6961,2353.3,2353.1,4.24969]
[1726607063014,3.6961,2353.3,2353.1,4.24959]
[1726607063259,3.5423,2353.5,2353.2,4.24953]
[1726607063499,3.5423,2353.5,2353.3,4.24932]
[1726607064021,3.5423,2353.5,2353.2,12.56004482]
[1726607064259,3.5423,2353.5,2353.2,12.55994482]
[1726607065065,3.5423,2353.5,2353.2,12.55996482]
[1726607065534,3.5423,2353.5,2353.2,8.31051482]
[1726607067025,3.5423,2353.5,2353.2,12.55996482]
[1726607067570,3.5423,2353.5,2353.2,8.31051482]
[1726607069383,3.6237,2353.7,2353.4,4.24914]
[1726607070076,3.6237,2353.7,2353.5,4.24898]
[1726607081282,3.6237,2353.7,2353.2,3.4709]
[1726607081456,4.24889,2353.6,2353.3,3.0]
[1726607081660,3.5652,2353.5,2353.1,3.0]
[1726607081854,3.5652,2353.5,2353.1,7.2496]
[1726607084804,3.5652,2353.7,2353.4,4.06110482]
[1726607086034,3.5652,2353.7,2353.4,8.31027482]
[1726607086163,3.5652,2353.7,2353.4,4.06110482]
[1726607087118,3.5652,2353.7,2353.4,8.31026482]
[1726607089503,4.44745025,2353.7,2353.4,8.31026482]
[1726607090127,3.5652,2353.7,2353.4,8.31026482]
[1726607090476,4.44745025,2353.7,2353.4,8.31026482]
[1726607090679,4.44745025,2353.7,2353.4,4.24916]
[1726607092024,4.44745025,2353.7,2353.3,4.24932]
[1726607094391,4.44745025,2353.7,2353.3,6.204226]
[1726607094597,3.5652,2353.7,2353.3,6.204226]
[1726607094808,4.44745025,2353.7,2353.3,6.204226]
[1726607098138,3.5652,2353.7,2353.3,6.204226]
[1726607098442,4.44745025,2353.7,2353.3,6.204226]
[1726607101511,3.5652,2353.7,2353.4,4.24914]
[1726607101712,4.44745025,2353.7,2353.4,4.24914]
[1726607101894,4.44745025,2353.7,2353.5,1.87526161]
[1726607102301,3.5652,2353.7,2353.5,1.87526161]
[1726607102524,4.44745025,2353.7,2353.5,1.87526161]
[1726607105634,4.44745025,2353.7,2353.4,4.24914]
[1726607106662,0.88225025,2353.7,2353.6,4.24881]
[1726607106823,4.36615025,2353.9,2353.6,4.24881]
[1726607107156,7.78204483,2354.0,2353.8,4.24844]
[1726607107157,1.32718521,2354.0,2353.8,4.24844]
[1726607107361,0.92140985,2354.1,2353.9,10.13909177]
[1726607107529,0.92140985,2354.1,2354.0,8.49616]
[1726607107530,0.0391596,2354.1,2354.0,8.49616]
[1726607107736,0.0391596,2354.1,2354.0,4.33303179]
[1726607107963,0.0391596,2354.1,2354.0,8.30899095]
[1726607108261,0.0391596,2354.1,2354.0,9.96627706]
[1726607109561,0.0391596,2354.1,2354.0,14.21435706]
[1726607110472,0.0391596,2354.1,2354.0,17.21435706]
[1726607111678,0.0391596,2354.1,2354.0,21.35705706]
[1726607112354,0.0391596,2354.1,2354.0,25.60513706]
[1726607120832,0.0391596,2354.1,2354.0,25.8208755]
[1726607121244,3.7487596,2354.8,2354.6,4.24689]
[1726607121474,3.7487596,2354.8,2354.7,4.06091095]
[1726607122569,3.7487596,2354.8,2354.3,11.30834095]
[1726607122570,7.9955196,2354.8,2354.3,11.30834095]
[1726607122983,3.7487596,2354.8,2354.5,3.0]
[1726607123274,4.32155934,2354.8,2354.5,3.0]
[1726607124974,3.7487596,2354.8,2354.5,3.0]
[1726607125179,3.7487596,2354.8,2354.5,7.06091095]
[1726607129681,3.7487596,2354.8,2354.5,7.14585005]
[1726607129891,3.7487596,2354.8,2354.7,4.06091095]
[1726607130059,0.0391596,2354.8,2354.7,4.06091095]
[1726607130246,0.0391596,2354.8,2354.7,5.19169105]
[1726607131274,0.0391596,2354.8,2354.7,4.06091095]
[1726607132270,0.0391596,2354.8,2354.7,4.17095566]
[1726607132953,0.0391596,2354.8,2354.7,8.41777566]
[1726607133784,0.0391596,2354.8,2354.7,4.17095566]
[1726607137067,0.0391596,2354.8,2354.7,0.11004471]
[1726607138166,0.0391596,2354.8,2354.7,1.98338334]
[1726607139121,3.7145596,2354.8,2354.7,1.98338334]
[1726607139325,7.9611996,2354.8,2354.7,0.11004471]
[1726607139520,7.9611996,2354.8,2354.5,1.87333863]
[1726607139729,7.9611996,2354.8,2354.7,0.10836534]
[1726607139907,7.9611996,2354.8,2354.5,1.87333863]
[1726607139908,3.7145596,2354.8,2354.5,4.05902826]
[1726607140224,3.7145596,2354.8,2354.6,0.93910375]
[1726607140426,0.0391596,2354.8,2354.7,4.05902826]
[1726607140627,0.0391596,2354.8,2354.7,8.30584826]
[1726607140796,0.0391596,2354.8,2354.7,8.4142136]
[1726607140985,0.0391596,2354.8,2354.7,13.20090523]
[1726607143589,0.0391596,2354.8,2354.7,17.91279784]
[1726607143799,0.0391596,2354.8,2354.7,21.43869784]
[1726607159325,0.0391596,2354.8,2354.7,17.91279784]
[1726607159963,0.0391596,2354.8,2354.7,15.72657909]
[1726607160562,0.0391596,2354.8,2354.7,9.05694958]